[Event "3rd FIDE WCCC Rapid G10 2019"]
[Site "Minsk"]
[Date "2019.08.17"]
[Round "5.3"]
[White "Smietanska, Wiktoria"]
[Black "Mizerova, Yana"]
[Result "0-1"]
[ECO "A27"]
[WhiteElo "1594"]
[BlackElo "1336"]
[Annotator "NA"]
[PlyCount "154"]
[EventDate "2019.08.16"]
[EventType "swiss"]
[EventCountry "BLR"]
[SourceTitle "playchess.com"]
[Source "ChessBase"]
[SourceQuality "1"]
[TimeControl "600+5"]

1. c4 {[%emt 0:00:00]} e5 {[%emt 0:00:00]} 2. Nc3 {[%emt 0:00:00]} Nc6 {[%emt 0:00:00]} 3. Nf3 {[%emt 0:00:00]} g6 {[%emt 0:00:18]} 4. g3 {[%emt 0:00:03]} Bg7 {[%emt 0:00:05]} 5. Bg2 {[%emt 0:00:08]} d6 {[%emt 0:00:04]} 6. e3 {[%emt 0:00:15]} f5 {[%emt 0:00:25]} 7. d4 {[%emt 0:00:24]} Nf6 {[%emt 0:01:02]} 8. dxe5 {[%emt 0:00:10]} dxe5 {[%emt 0:00:03]} 9. Qxd8+ {[%emt 0:00:03]} Kxd8 {[%emt 0:00:02]} 10. Ng5 {[%emt 0:00:16]} Ke7 {[%emt 0:00:39]} 11. Bxc6 {[%emt 0:00:17]} bxc6 {[%emt 0:00:03]} 12. Nf3 {[%emt 0:00:40]} Nd7 {[%emt 0:00:06]} 13. Bd2 {[%emt 0:01:42]} e4 {[%emt 0:00:31]} 14. Nd4 {[%emt 0:00:50]} Ne5 {[%emt 0:00:10]} 15. b3 {[%emt 0:02:16]} Rd8 {[%emt 0:01:15]} 16. Ke2 {[%emt 0:00:44]} c5 {[%emt 0:00:22]} 17. Nd5+ {[%emt 0:00:45]} Rxd5 {[%emt 0:00:57]} 18. Nxf5+ {[%emt 0:00:54]} Bxf5 {[%emt 0:00:08]} 19. cxd5 {[%emt 0:00:02]} Rd8 {[%emt 0:00:53]} 20. h3 {[%emt 0:00:39]} Nf3 {[%emt 0:00:45]} 21. Rac1 {[%emt 0:00:28]} Nxd2 {[%emt 0:01:03]} 22. Kxd2 {[%emt 0:00:03]} Rxd5+ {[%emt 0:00:03]} 23. Ke2 {[%emt 0:00:02]} Bd7 {[%emt 0:00:51]} 24. Rhd1 {[%emt 0:00:34]} Rxd1 {[%emt 0:00:24]} 25. Kxd1 {[%emt 0:00:02]} Kd6 {[%emt 0:00:46]} 26. Rc4 {[%emt 0:00:24]} Kd5 {[%emt 0:00:13]} 27. a4 {[%emt 0:00:19]} Bxh3 {[%emt 0:00:15]} 28. Kd2 {[%emt 0:00:05]} Bd7 {[%emt 0:00:18]} 29. Rc1 {[%emt 0:00:04]} Bb2 {[%emt 0:00:05]} 30. Rh1 {[%emt 0:00:05]} h5 {[%emt 0:00:03]} 31. Rb1 {[%emt 0:00:05]} Ba3 {[%emt 0:00:04]} 32. Rd1 {[%emt 0:00:04]} Bb4+ {[%emt 0:00:04]} 33. Kc2+ {[%emt 0:00:01]} Kc6 {[%emt 0:00:06]} 34. Rh1 {[%emt 0:00:06]} Bg4 {[%emt 0:00:04]} 35. Rc1 {[%emt 0:00:09]} Be2 {[%emt 0:00:08]} 36. Rh1 {[%emt 0:00:08]} Bd3+ {[%emt 0:00:02]} 37. Kb2 {[%emt 0:00:01]} c4 {[%emt 0:00:06]} 38. bxc4 {[%emt 0:00:06]} Bxc4 {[%emt 0:00:01]} 39. Rc1 {[%emt 0:00:02]} Kd5 {[%emt 0:00:05]} 40. Rd1+ {[%emt 0:00:02]} Kc5 {[%emt 0:00:23]} 41. Rd7 {[%emt 0:00:05]} Ba5 {[%emt 0:00:05]} 42. Rg7 {[%emt 0:00:05]} Kb4 {[%emt 0:00:15]} 43. Rxg6 {[%emt 0:00:04]} Kxa4 {[%emt 0:00:02]} 44. Rc6 {[%emt 0:00:05]} Bb5 {[%emt 0:00:15]} 45. Rc5 {[%emt 0:00:02]} Bb6 {[%emt 0:00:03]} 46. Rxh5 {[%emt 0:00:16]} Bd3 {[%emt 0:00:00]} 47. Rh7 {[%emt 0:00:09]} Bxe3 {[%emt 0:00:04]} 48. Rxc7 Bxf2 {[%emt 0:00:02]} 49. g4 {[%emt 0:00:11]} Kb5 {[%emt 0:00:05]} 50. g5 {[%emt 0:00:03]} Kb6 {[%emt 0:00:03]} 51. Re7 {[%emt 0:00:06]} e3 {[%emt 0:00:01]} 52. Kc3 {[%emt 0:00:08]} e2 {[%emt 0:00:06]} 53. Kd2 {[%emt 0:00:04]} e1=Q+ {[%emt 0:00:18]} 54. Rxe1 {[%emt 0:00:03]} Bxe1+ {[%emt 0:00:03]} 55. Kxe1 {[%emt 0:00:01]} Kb5 {[%emt 0:00:01]} 56. Kd1 {[%emt 0:00:02]} Kb4 {[%emt 0:00:01]} 57. Kc1 {[%emt 0:00:04]} Ka3 {[%emt 0:00:02]} 58. Kd2 {[%emt 0:00:05]} Bh7 {[%emt 0:00:02]} 59. Kc1 {[%emt 0:00:05]} Ka2 {[%emt 0:00:02]} 60. Kd2 {[%emt 0:00:04]} Kb2 {[%emt 0:00:04]} 61. Kd1 {[%emt 0:00:04]} a5 {[%emt 0:00:01]} 62. Ke2 {[%emt 0:00:02]} a4 {[%emt 0:00:01]} 63. Ke3 {[%emt 0:00:02]} a3 {[%emt 0:00:01]} 64. Kf4 {[%emt 0:00:02]} a2 {[%emt 0:00:01]} 65. Ke5 {[%emt 0:00:02]} a1=Q {[%emt 0:00:02]} 66. Kf6 {[%emt 0:00:02]} Kb3+ {[%emt 0:00:04]} 67. Kf7 {[%emt 0:00:02]} Kc4 {[%emt 0:00:06]} 68. g6 {[%emt 0:00:03]} Bxg6+ {[%emt 0:00:03]} 69. Kxg6 {[%emt 0:00:02]} Qf1 {[%emt 0:00:02]} 70. Kg5 {[%emt 0:00:01]} Qf3 {[%emt 0:00:03]} 71. Kg6 {[%emt 0:00:01]} Qf4 {[%emt 0:00:01]} 72. Kg7 {[%emt 0:00:03]} Qf5 {[%emt 0:00:01]} 73. Kh8 {[%emt 0:00:03]} Qg5 {[%emt 0:00:03]} 74. Kh7 {[%emt 0:00:02]} Kd5 {[%emt 0:00:02]} 75. Kh8 {[%emt 0:00:01]} Ke6 {[%emt 0:00:01]} 76. Kh7 {[%emt 0:00:03]} Kf7 {[%emt 0:00:02]} 77. Kh8 {[%emt 0:00:01]} Qg7# {[%emt 0:00:02]} 0-1

[Event "3rd FIDE WCCC Rapid G10 2019"]
[Site "Minsk"]
[Date "2019.08.17"]
[Round "5.5"]
[White "Efimova, Darya"]
[Black "Sidorenja, Milena"]
[Result "1-0"]
[ECO "B20"]
[WhiteElo "1385"]
[BlackElo "1573"]
[Annotator "NA"]
[PlyCount "79"]
[EventDate "2019.08.16"]
[EventType "swiss"]
[EventCountry "BLR"]
[SourceTitle "playchess.com"]
[Source "ChessBase"]
[SourceQuality "1"]
[TimeControl "600+5"]

1. e4 {[%emt 0:00:00]} c5 {[%emt 0:00:00]} 2. b3 {[%emt 0:00:00]} e5 {[%emt 0:00:46]} 3. Bb2 {[%emt 0:00:00]} d6 {[%emt 0:00:01]} 4. f4 {[%emt 0:00:00]} Nf6 {[%emt 0:00:21]} 5. Nc3 {[%emt 0:00:21]} Nc6 {[%emt 0:00:21]} 6. Bb5 {[%emt 0:00:01]} Bd7 {[%emt 0:00:10]} 7. Nf3 {[%emt 0:00:04]} Be7 {[%emt 0:00:42]} 8. Bxc6 {[%emt 0:01:11]} Bxc6 {[%emt 0:00:07]} 9. fxe5 {[%emt 0:00:01]} dxe5 {[%emt 0:00:03]} 10. Qe2 {[%emt 0:00:10]} Qc7 {[%emt 0:01:38]} 11. O-O-O {[%emt 0:01:01]} O-O-O {[%emt 0:01:48]} 12. Kb1 {[%emt 0:01:02]} Kb8 {[%emt 0:00:03]} 13. Rhe1 {[%emt 0:01:34]} a6 {[%emt 0:01:05]} 14. d3 {[%emt 0:02:01]} Rhe8 {[%emt 0:00:38]} 15. Qf2 {[%emt 0:00:29]} g6 {[%emt 0:01:46]} 16. Qg3 {[%emt 0:00:18]} Bd6 {[%emt 0:00:12]} 17. Qf2 {[%emt 0:01:08]} Ka8 {[%emt 0:00:30]} 18. Nd2 {[%emt 0:00:23]} Nh5 {[%emt 0:00:13]} 19. g3 {[%emt 0:00:00]} Ng7 {[%emt 0:00:03]} 20. Nc4 {[%emt 0:00:26]} f5 {[%emt 0:00:11]} 21. Nxd6 Qxd6 {[%emt 0:00:02]} 22. a3 {[%emt 0:01:26]} Rf8 {[%emt 0:00:07]} 23. Qe2 {[%emt 0:00:01]} f4 {[%emt 0:00:11]} 24. gxf4 {[%emt 0:00:07]} Rxf4 {[%emt 0:00:07]} 25. Nd5 {[%emt 0:00:03]} Rf7 {[%emt 0:00:13]} 26. Rf1 {[%emt 0:00:04]} Rdf8 {[%emt 0:00:02]} 27. Rxf7 {[%emt 0:00:02]} Rxf7 {[%emt 0:00:01]} 28. Nb6+ {[%emt 0:00:08]} Kb8 {[%emt 0:00:06]} 29. Nc4 {[%emt 0:00:01]} Qe7 {[%emt 0:00:06]} 30. Nxe5 {[%emt 0:00:05]} Rf8 {[%emt 0:00:05]} 31. Nxc6+ {[%emt 0:00:07]} bxc6 {[%emt 0:00:01]} 32. d4 {[%emt 0:00:11]} Nh5 {[%emt 0:00:19]} 33. Qxa6 {[%emt 0:00:07]} Qxe4 {[%emt 0:00:10]} 34. Qb6+ {[%emt 0:00:05]} Ka8 {[%emt 0:00:02]} 35. Qxc5 {[%emt 0:00:01]} Rc8 {[%emt 0:00:22]} 36. d5 Qe2 {[%emt 0:00:06]} 37. Rd4 {[%emt 0:00:16]} Qe1+ {[%emt 0:00:06]} 38. Ka2 {[%emt 0:00:00]} Rb8 {[%emt 0:00:12]} 39. Ra4+ {[%emt 0:00:01]} Kb7 {[%emt 0:00:01]} 40. Qxc6# {[%emt 0:00:04]} 1-0

[Event "3rd FIDE WCCC Rapid G10 2019"]
[Site "Minsk"]
[Date "2019.08.17"]
[Round "5.6"]
[White "Khamdamova, Afruza"]
[Black "Kamenskaya, Marina"]
[Result "1-0"]
[ECO "C87"]
[WhiteElo "1607"]
[BlackElo "1292"]
[Annotator "NA"]
[PlyCount "83"]
[EventDate "2019.08.16"]
[EventType "swiss"]
[EventCountry "BLR"]
[SourceTitle "playchess.com"]
[Source "ChessBase"]
[SourceQuality "1"]
[TimeControl "600+5"]

1. e4 {[%emt 0:00:00]} e5 {[%emt 0:00:00]} 2. Nf3 {[%emt 0:00:00]} Nc6 {[%emt 0:00:12]} 3. Bb5 {[%emt 0:00:00]} a6 {[%emt 0:00:07]} 4. Ba4 {[%emt 0:00:00]} d6 {[%emt 0:00:45]} 5. O-O {[%emt 0:00:15]} Nf6 {[%emt 0:00:29]} 6. Re1 {[%emt 0:00:21]} Be7 {[%emt 0:00:06]} 7. c3 {[%emt 0:00:08]} b5 {[%emt 0:00:08]} 8. Bc2 {[%emt 0:00:03]} O-O {[%emt 0:00:15]} 9. h3 {[%emt 0:00:02]} Bb7 {[%emt 0:01:14]} 10. d4 {[%emt 0:00:04]} exd4 {[%emt 0:01:01]} 11. cxd4 {[%emt 0:00:01]} Nb4 {[%emt 0:00:10]} 12. Nbd2 {[%emt 0:01:02]} Nxc2 {[%emt 0:00:04]} 13. Qxc2 {[%emt 0:00:01]} d5 {[%emt 0:00:30]} 14. e5 {[%emt 0:00:36]} Nd7 {[%emt 0:00:07]} 15. Nf1 {[%emt 0:00:14]} c5 {[%emt 0:00:08]} 16. Be3 {[%emt 0:01:13]} Rc8 {[%emt 0:00:04]} 17. Qd2 {[%emt 0:00:14]} c4 {[%emt 0:00:19]} 18. Ng3 {[%emt 0:00:44]} b4 {[%emt 0:00:24]} 19. Rac1 {[%emt 0:00:37]} Re8 {[%emt 0:00:23]} 20. Nf5 {[%emt 0:00:14]} Nf8 {[%emt 0:00:58]} 21. Nxe7+ {[%emt 0:00:08]} Qxe7 {[%emt 0:00:12]} 22. Bg5 {[%emt 0:00:02]} Qd7 {[%emt 0:00:20]} 23. Qxb4 {[%emt 0:00:06]} Ne6 {[%emt 0:00:03]} 24. Bd2 {[%emt 0:00:19]} Rb8 {[%emt 0:00:31]} 25. Qc3 {[%emt 0:00:12]} Bc6 {[%emt 0:00:06]} 26. Nh2 {[%emt 0:01:11]} Qb7 {[%emt 0:00:17]} 27. Rb1 {[%emt 0:00:19]} Qb6 {[%emt 0:00:03]} 28. Be3 {[%emt 0:00:04]} Ba4 {[%emt 0:00:37]} 29. f4 {[%emt 0:00:23]} Bd7 {[%emt 0:00:17]} 30. f5 {[%emt 0:00:10]} Nc7 {[%emt 0:00:01]} 31. Rf1 {[%emt 0:00:05]} Nb5 {[%emt 0:00:03]} 32. Qd2 {[%emt 0:00:05]} Qc7 {[%emt 0:00:09]} 33. Rbc1 {[%emt 0:00:33]} Kh8 {[%emt 0:00:34]} 34. Qf2 {[%emt 0:00:13]} Qb6 {[%emt 0:00:15]} 35. f6 {[%emt 0:00:17]} Be6 {[%emt 0:00:12]} 36. fxg7+ {[%emt 0:00:05]} Kg8 {[%emt 0:00:02]} 37. Ng4 {[%emt 0:00:04]} Kxg7 {[%emt 0:00:22]} 38. Bh6+ {[%emt 0:00:07]} Kg8 {[%emt 0:00:16]} 39. Qf6 {[%emt 0:00:07]} Qxd4+ {[%emt 0:00:06]} 40. Kh1 {[%emt 0:00:02]} Qxg4 {[%emt 0:00:52]} 41. hxg4 {[%emt 0:00:01]} Bxg4 {[%emt 0:00:10]} 42. Qg7# {[%emt 0:00:01]} 1-0

[Event "3rd FIDE WCCC Rapid G10 2019"]
[Site "Minsk"]
[Date "2019.08.17"]
[Round "6.1"]
[White "Nurgaliyeva, Zarina"]
[Black "Mai, Hieu Linh"]
[Result "1-0"]
[ECO "C46"]
[WhiteElo "1474"]
[BlackElo "1344"]
[Annotator "NA"]
[PlyCount "85"]
[EventDate "2019.08.16"]
[EventType "swiss"]
[EventCountry "BLR"]
[SourceTitle "playchess.com"]
[Source "ChessBase"]
[SourceQuality "1"]
[TimeControl "600+5"]

1. e4 {[%emt 0:00:00]} e5 {[%emt 0:00:00]} 2. Nf3 {[%emt 0:00:00]} Nc6 {[%emt 0:00:00]} 3. Nc3 {[%emt 0:00:00]} Bc5 {[%emt 0:00:09]} 4. Nxe5 {[%emt 0:00:01]} Nxe5 {[%emt 0:00:02]} 5. d4 {[%emt 0:00:02]} Bd6 {[%emt 0:00:02]} 6. dxe5 {[%emt 0:00:06]} Bxe5 {[%emt 0:00:01]} 7. Bd3 {[%emt 0:00:11]} Bxc3+ {[%emt 0:00:06]} 8. bxc3 {[%emt 0:00:01]} d6 {[%emt 0:00:11]} 9. O-O {[%emt 0:00:04]} Nf6 {[%emt 0:00:02]} 10. f4 {[%emt 0:00:30]} O-O {[%emt 0:00:20]} 11. Qf3 {[%emt 0:00:26]} Qe7 {[%emt 0:01:06]} 12. Ba3 {[%emt 0:00:48]} c5 {[%emt 0:01:15]} 13. Rae1 {[%emt 0:00:08]} Qc7 {[%emt 0:02:14]} 14. e5 {[%emt 0:02:36]} dxe5 {[%emt 0:00:24]} 15. fxe5 {[%emt 0:00:16]} Ng4 {[%emt 0:01:20]} 16. Qe4 {[%emt 0:02:31]} f5 {[%emt 0:01:03]} 17. Qc4+ {[%emt 0:00:23]} Kh8 {[%emt 0:00:04]} 18. Qxc5 {[%emt 0:00:10]} Qxc5+ {[%emt 0:00:35]} 19. Bxc5 {[%emt 0:00:02]} Re8 {[%emt 0:00:08]} 20. Bd4 {[%emt 0:00:10]} Nh6 {[%emt 0:00:33]} 21. Bb5 {[%emt 0:00:20]} Re7 {[%emt 0:00:18]} 22. Bc5 {[%emt 0:00:26]} Rc7 {[%emt 0:00:04]} 23. Bd6 {[%emt 0:01:24]} Rxc3 {[%emt 0:00:13]} 24. e6 {[%emt 0:00:06]} Bxe6 {[%emt 0:00:19]} 25. Rxe6 {[%emt 0:00:06]} Rxc2 {[%emt 0:00:11]} 26. Rfe1 {[%emt 0:00:13]} Kg8 {[%emt 0:00:31]} 27. Ba4 {[%emt 0:00:18]} Rb2 {[%emt 0:00:32]} 28. Bb3 {[%emt 0:00:07]} Kf7 {[%emt 0:00:05]} 29. R6e2+ {[%emt 0:00:05]} Rxb3 {[%emt 0:00:03]} 30. axb3 {[%emt 0:00:02]} a5 {[%emt 0:00:05]} 31. Re7+ {[%emt 0:00:02]} Kg6 {[%emt 0:00:03]} 32. Rxb7 {[%emt 0:00:03]} Rd8 {[%emt 0:00:02]} 33. Re6+ {[%emt 0:00:10]} Kh5 {[%emt 0:00:03]} 34. Rxg7 {[%emt 0:00:04]} Ng4 {[%emt 0:00:07]} 35. Rxh7+ {[%emt 0:00:04]} Kg5 {[%emt 0:00:01]} 36. Be7+ {[%emt 0:00:02]} Kf4 {[%emt 0:00:05]} 37. Bxd8 {[%emt 0:00:03]} a4 {[%emt 0:00:02]} 38. bxa4 {[%emt 0:00:03]} Nxh2 {[%emt 0:00:17]} 39. Bc7+ {[%emt 0:00:10]} Kg5 {[%emt 0:00:07]} 40. Rg7+ {[%emt 0:00:08]} Kh5 {[%emt 0:00:03]} 41. Kxh2 {[%emt 0:00:07]} f4 {[%emt 0:00:01]} 42. Bxf4 {[%emt 0:00:05]} Kh4 {[%emt 0:00:01]} 43. Rh6# {[%emt 0:00:01]} 1-0

[Event "3rd FIDE WCCC Rapid G10 2019"]
[Site "Minsk"]
[Date "2019.08.17"]
[Round "6.2"]
[White "Mizerova, Yana"]
[Black "Shukhman, Anna"]
[Result "1/2-1/2"]
[ECO "A45"]
[WhiteElo "1336"]
[BlackElo "1806"]
[Annotator "NA"]
[PlyCount "225"]
[EventDate "2019.08.16"]
[EventType "swiss"]
[EventCountry "BLR"]
[SourceTitle "playchess.com"]
[Source "ChessBase"]
[SourceQuality "1"]
[TimeControl "600+5"]

1. d4 {[%emt 0:00:00]} Nf6 {[%emt 0:00:00]} 2. Bg5 {[%emt 0:00:00]} g6 {[%emt 0:00:08]} 3. Bxf6 {[%emt 0:00:03]} exf6 {[%emt 0:00:02]} 4. g3 {[%emt 0:00:03]} Bg7 {[%emt 0:00:03]} 5. Bg2 {[%emt 0:00:02]} d5 {[%emt 0:00:03]} 6. e3 {[%emt 0:00:08] A45: Trompowsky Attack} f5 {[%emt 0:00:24]} 7. Ne2 {[%emt 0:00:06]} c5 $146 {[%emt 0:00:09]} ({Predecessor:} 7... c6 8. O-O h5 9. c4 dxc4 10. Na3 h4 11. Nxc4 hxg3 12. hxg3 Be6 13. Qd3 {1-0 (40) Torre,E (2447)-Salgado Lopez,I (2662) Baku 2016}) 8. c3 {[%emt 0:00:03]} cxd4 {[%emt 0:00:28]} 9. cxd4 {[%emt 0:00:09]} Nc6 {[%emt 0:00:05]} 10. Nbc3 {[%emt 0:00:18]} Be6 {[%emt 0:00:09]} 11. Nf4 {[%emt 0:00:35]} Ne7 {[%emt 0:00:32]} 12. Qb3 {[%emt 0:00:27]} O-O {[%emt 0:01:52]} 13. O-O {[%emt 0:01:44]} Bh6 {[%emt 0:01:53]} 14. Nfxd5 {[%emt 0:00:40]} Kh8 {[%emt 0:00:47]} 15. Qxb7 {[%emt 0:01:31]} Nxd5 {[%emt 0:01:05]} 16. Nxd5 {[%emt 0:00:33]} Rb8 {[%emt 0:00:09]} 17. Qc7 {[%emt 0:00:44]} Bxd5 {[%emt 0:00:37]} 18. Qe5+ {[%emt 0:00:04]} Kg8 {[%emt 0:00:28]} 19. Qxd5 {[%emt 0:00:04]} Rxb2 {[%emt 0:00:05]} 20. Qxd8 {[%emt 0:00:27]} Rxd8 {[%emt 0:00:01]} 21. Rfb1 {[%emt 0:00:05]} Rdb8 {[%emt 0:00:10]} 22. Rxb2 {[%emt 0:00:08]} Rxb2 {[%emt 0:00:01]} 23. Bd5 {[%emt 0:00:03]} Rb5 {[%emt 0:00:30]} 24. Bb3 {[%emt 0:00:11]} Bf8 {[%emt 0:00:06]} 25. Rc1 {[%emt 0:00:06]} Rb7 {[%emt 0:00:06]} 26. d5 {[%emt 0:00:52]} Bd6 {[%emt 0:00:08]} 27. Rc6 {[%emt 0:00:10]} Rd7 {[%emt 0:00:06]} 28. Rc8+ {[%emt 0:00:15]} Kg7 {[%emt 0:00:02]} 29. Ba4 {[%emt 0:00:15]} Rc7 {[%emt 0:00:22]} 30. Rxc7 {[%emt 0:00:48]} Bxc7 {[%emt 0:00:01]} 31. Kf1 {[%emt 0:00:04]} Kf6 {[%emt 0:00:02]} 32. Ke2 {[%emt 0:00:04]} Ke5 {[%emt 0:00:02]} 33. Bc6 {[%emt 0:00:07]} f6 {[%emt 0:00:11]} 34. Kd3 {[%emt 0:00:03]} h6 {[%emt 0:00:09]} 35. f4+ {[%emt 0:00:31]} Kd6 {[%emt 0:00:02]} 36. Kc4 {[%emt 0:00:03]} g5 {[%emt 0:00:10]} 37. Be8 {[%emt 0:00:04]} Bb6 {[%emt 0:00:05]} 38. Bg6 {[%emt 0:00:18]} Bxe3 {[%emt 0:00:02]} 39. fxg5 {[%emt 0:00:08]} fxg5 {[%emt 0:00:06]} 40. Bxf5 {[%emt 0:00:05]} Bf2 {[%emt 0:00:14]} 41. Be6 {[%emt 0:00:20]} Bc5 {[%emt 0:00:48]} 42. Kb5 {[%emt 0:00:14]} Bf2 {[%emt 0:00:05]} 43. Bf7 {[%emt 0:00:14]} Be1 {[%emt 0:00:05]} 44. Kc4 {[%emt 0:00:01]} Bf2 {[%emt 0:00:03]} 45. a4 {[%emt 0:00:09]} Ke5 {[%emt 0:00:07]} 46. Kb5 {[%emt 0:00:03]} Kd6 {[%emt 0:00:01]} 47. Kc4 {[%emt 0:00:01]} Bc5 {[%emt 0:00:06]} 48. Kb5 {[%emt 0:00:11]} Bg1 {[%emt 0:00:12]} 49. h3 {[%emt 0:00:02]} Bf2 {[%emt 0:00:04]} 50. g4 {[%emt 0:00:02]} Bb6 {[%emt 0:00:05]} 51. Be6 {[%emt 0:00:04]} Bc5 {[%emt 0:00:08]} 52. Bf7 {[%emt 0:00:03]} Be3 {[%emt 0:00:08]} 53. Kc4 {[%emt 0:00:03]} Ke5 {[%emt 0:00:02]} 54. Be6 {[%emt 0:00:11]} Bb6 {[%emt 0:00:04]} 55. Kb5 {[%emt 0:00:04]} Kd6 {[%emt 0:00:03]} 56. Kc4 {[%emt 0:00:09]} Ba5 {[%emt 0:00:02]} 57. Kb5 {[%emt 0:00:02]} Bd2 {[%emt 0:00:05]} 58. Kc4 {[%emt 0:00:11]} Be3 {[%emt 0:00:04]} 59. Bf7 {[%emt 0:00:03]} Bb6 {[%emt 0:00:07]} 60. Be6 {[%emt 0:00:06]} Ke5 {[%emt 0:00:06]} 61. Kb5 {[%emt 0:00:04]} Kd6 {[%emt 0:00:10]} 62. Kc4 {[%emt 0:00:02]} Ba5 {[%emt 0:00:02]} 63. Kd4 {[%emt 0:00:06]} Be1 {[%emt 0:00:06]} 64. Ke4 {[%emt 0:00:02]} Kc5 {[%emt 0:00:03]} 65. Kf5 {[%emt 0:00:07]} Bd2 {[%emt 0:00:18] [#]} 66. Kg6 $1 {[%emt 0:00:03]} Bf4 {[%emt 0:00:09]} 67. Kxh6 {[%emt 0:00:05]} Kb4 {[%emt 0:00:01]} 68. Bd7 {[%emt 0:00:08]} Kc5 {[%emt 0:00:01]} 69. Bc6 {[%emt 0:00:04]} Kd6 {[%emt 0:00:04]} 70. Kh5 {[%emt 0:00:06]} Bd2 {[%emt 0:00:09]} 71. h4 {[%emt 0:00:02]} gxh4 {[%emt 0:00:01]} 72. Kxh4 {[%emt 0:00:01]} Bb4 {[%emt 0:00:02]} 73. Kh5 {[%emt 0:00:05]} Ke7 {[%emt 0:00:03]} 74. Kh6 {[%emt 0:00:05]} Bd2+ {[%emt 0:00:06]} 75. g5 {[%emt 0:00:09]} Be3 $18 {[%emt 0:00:02]} 76. Kg6 {[%emt 0:00:14]} Bd2 {[%emt 0:00:21]} 77. Kf5 {[%emt 0:00:01]} Bc3 {[%emt 0:00:05]} 78. g6 {[%emt 0:00:05]} Bg7 {[%emt 0:00:02]} 79. Ke4 {[%emt 0:00:12]} Bc3 {[%emt 0:00:02]} 80. Kd3 {[%emt 0:00:06]} Be5 {[%emt 0:00:02]} 81. Kc4 {[%emt 0:00:04]} Kd6 {[%emt 0:00:04]} 82. Kb5 {[%emt 0:00:06]} Bf6 {[%emt 0:00:34]} 83. Ka6 {[%emt 0:00:03]} Bd4 {[%emt 0:00:03]} 84. g7 {[%emt 0:00:18]} Bxg7 {[%emt 0:00:02]} 85. Kxa7 {[%emt 0:00:02]} Kc7 {[%emt 0:00:03]} 86. a5 {[%emt 0:00:17]} Bd4+ {[%emt 0:00:08]} 87. Ka6 {[%emt 0:00:09]} Be3 {[%emt 0:00:01]} 88. Kb5 {[%emt 0:00:04]} Bf2 {[%emt 0:00:03]} 89. a6 {[%emt 0:00:07]} Bg1 {[%emt 0:00:02]} 90. Kc4 {[%emt 0:00:03]} Kd6 {[%emt 0:00:02]} 91. Kd3 {[%emt 0:00:05]} Ba7 {[%emt 0:00:03]} 92. Ke4 {[%emt 0:00:02]} Bg1 {[%emt 0:00:16]} 93. Kf5 {[%emt 0:00:03]} Bd4 {[%emt 0:00:08]} 94. Kg6 {[%emt 0:00:05]} Ke7 {[%emt 0:00:02]} 95. Kf5 {[%emt 0:00:07]} Kd6 {[%emt 0:00:01]} 96. Bb7 {[%emt 0:00:02]} Ke7 {[%emt 0:00:23]} 97. Ke4 {[%emt 0:00:03]} Bb6 {[%emt 0:00:08]} 98. Ke5 {[%emt 0:00:13]} Bc7+ {[%emt 0:00:06]} 99. Kf5 {[%emt 0:00:03]} Bb6 {[%emt 0:00:02]} 100. Bc6 {[%emt 0:00:03]} Bg1 {[%emt 0:00:03]} 101. Ke4 {[%emt 0:00:07]} Kd6 {[%emt 0:00:02]} 102. Kd3 {[%emt 0:00:01]} Bf2 {[%emt 0:00:03]} 103. Kc4 {[%emt 0:00:02]} Bg1 {[%emt 0:00:02]} 104. Bb7 {[%emt 0:00:04]} Bf2 {[%emt 0:00:02]} 105. Kd3 {[%emt 0:00:06]} Bg1 {[%emt 0:00:02]} 106. Ke4 {[%emt 0:00:01]} Bf2 {[%emt 0:00:06]} 107. Kf5 {[%emt 0:00:02]} Ke7 {[%emt 0:00:01]} 108. Bc6 {[%emt 0:00:11]} Bg1 {[%emt 0:00:02]} 109. Kg6 {[%emt 0:00:04]} Bf2 {[%emt 0:00:04]} 110. Kg7 {[%emt 0:00:04]} Bg1 {[%emt 0:00:02]} 111. Kg6 {[%emt 0:00:02]} Bf2 {[%emt 0:00:01]} 112. Kf5 {[%emt 0:00:02]} Bg1 {[%emt 0:00:02]} 113. Ke4 1/2-1/2

[Event "3rd FIDE WCCC Rapid G10 2019"]
[Site "Minsk"]
[Date "2019.08.17"]
[Round "6.3"]
[White "Fedorova, Olesya"]
[Black "Shenker, Angelina"]
[Result "1-0"]
[ECO "B13"]
[WhiteElo "1578"]
[BlackElo "1403"]
[Annotator "NA"]
[PlyCount "59"]
[EventDate "2019.08.16"]
[EventType "swiss"]
[EventCountry "BLR"]
[SourceTitle "playchess.com"]
[Source "ChessBase"]
[SourceQuality "1"]
[TimeControl "600+5"]

1. e4 {[%emt 0:00:00]} c6 {[%emt 0:00:00]} 2. d4 {[%emt 0:00:00]} d5 {[%emt 0:00:00]} 3. exd5 {[%emt 0:00:01]} cxd5 {[%emt 0:00:00]} 4. Bd3 {[%emt 0:00:01]} Nc6 {[%emt 0:00:03]} 5. c3 {[%emt 0:00:02]} Qc7 {[%emt 0:00:01]} 6. Nf3 {[%emt 0:00:12]} Bg4 {[%emt 0:00:02]} 7. O-O {[%emt 0:00:25]} e6 {[%emt 0:00:02]} 8. Be3 {[%emt 0:00:03]} Bd6 {[%emt 0:00:08]} 9. h3 {[%emt 0:00:07]} Bh5 {[%emt 0:00:07]} 10. Nbd2 {[%emt 0:00:12]} Nge7 {[%emt 0:00:10]} 11. Qc2 {[%emt 0:00:49]} Bg6 {[%emt 0:00:48]} 12. Bxg6 {[%emt 0:00:11]} Nxg6 {[%emt 0:00:16]} 13. Nb3 {[%emt 0:00:31]} O-O {[%emt 0:00:19]} 14. Nc1 {[%emt 0:00:23]} Bf4 {[%emt 0:01:14]} 15. Nd3 {[%emt 0:00:45]} Bxe3 {[%emt 0:00:26]} 16. fxe3 {[%emt 0:00:03]} Rac8 {[%emt 0:00:30]} 17. Rae1 {[%emt 0:00:38]} Na5 {[%emt 0:00:26]} 18. e4 {[%emt 0:00:32]} Nc4 {[%emt 0:00:44]} 19. e5 {[%emt 0:00:58]} f6 {[%emt 0:01:23]} 20. exf6 {[%emt 0:00:59]} Rxf6 {[%emt 0:00:02]} 21. Nc5 {[%emt 0:00:22]} Re8 {[%emt 0:00:27]} 22. b3 {[%emt 0:00:37]} Nd6 {[%emt 0:00:24]} 23. Ng5 {[%emt 0:00:23]} Rxf1+ {[%emt 0:00:15]} 24. Rxf1 {[%emt 0:00:03]} Qc8 {[%emt 0:01:57]} 25. Re1 {[%emt 0:00:21]} Nb5 {[%emt 0:00:42]} 26. Rxe6 {[%emt 0:00:26]} Rxe6 {[%emt 0:00:04]} 27. Ncxe6 {[%emt 0:00:04]} Qxc3 {[%emt 0:00:47]} 28. Qf2 {[%emt 0:00:35]} Qc8 {[%emt 0:00:02]} 29. Qf7+ {[%emt 0:00:13]} Kh8 {[%emt 0:00:02]} 30. Qxg7# {[%emt 0:00:07]} 1-0